Workbook

Sheet Worksheet
D1: Complete these weekly or monthly payslips and calculate the net pay
D3: Name | E3: Employee number | F3: Month | G3: Date | H3: Tax Code | I3: NI Number
D4: Ashleigh McGrath | E4: 14 | F4: 3 | G4: 2023-06-23 | H4: 506H | I4: WM 35 97 12 B
A6: Variables | D6: BASIC PAY | H6: DEDUCTIONS | J6: 9
A7: SHOW ANSWERS | B7: FALSE | E7: Hourly wage | F7: Hours worked | G7: TOTAL | I7: TOTAL | J7: 10
A8: Find totals | B8: 1 | D8: Basic hours | E8: 8 | F8: 15 | G8: 120 | H8: Tax | I8: 72.2 | J8: 8
A9: Some totals given | D9: Night shift | E9: 12 | F9: 11 | G9: 132 | H9: National Insurance | I9: 32.8 | J9: 9
D10: Evenings | E10: 16 | F10: 7 | G10: 112 | H10: Pension | I10: 27.2
F11: GROSS PAY | G11: 364 | H11: TOTAL DEDUCTIONS | I11: 132.2
H13: NET PAY | I13: 231.8
D15: Name | E15: Employee number | F15: Month | G15: Date | H15: Tax Code | I15: NI Number
D16: Ellis Campbell | E16: 5621 | F16: 1 | G16: 2023-04-23 | H16: 407L | I16: EH 51 69 33 D
D18: BASIC PAY | H18: DEDUCTIONS | J18: 22
E19: Hourly wage | F19: Hours worked | G19: TOTAL | I19: TOTAL | J19: 20
D20: Basic hours | E20: 10 | F20: 20 | G20: 200 | H20: Tax | I20: 98 | J20: 21
D21: Night shift | E21: 15 | F21: 6 | G21: 90 | H21: National Insurance | I21: 44.2 | J21: 22
D22: Evenings | E22: 20 | F22: 10 | G22: 200 | H22: Pension | I22: 28.7
F23: GROSS PAY | G23: 490 | H23: TOTAL DEDUCTIONS | I23: 170.9
H25: NET PAY | I25: 319.1
D27: Name | E27: Employee number | F27: Week | G27: Date | H27: Tax Code | I27: NI Number
D28: Jay Mitchell | E28: 927445 | F28: 12 | G28: 2023-03-24 | H28: 484L | I28: GK 69 13 37 A
D30: BASIC PAY | H30: DEDUCTIONS | J30: 34
E31: Hourly wage | F31: Hours worked | G31: TOTAL | I31: TOTAL | J31: 32
D32: Basic hours | E32: 17 | F32: 29 | G32: 493 | H32: Tax | I32: 164.6 | J32: 33
D33: Saturday | E33: 25.5 | F33: 9 | G33: 229.5 | H33: National Insurance | I33: 74.6 | J33: 32
D34: Sunday | E34: 34 | F34: 3 | G34: 102 | H34: Pension | I34: 42.4
F35: GROSS PAY | G35: 824.5 | H35: TOTAL DEDUCTIONS | I35: 281.6
H37: NET PAY | I37: 542.9

Sheet SYSTEM FORMULAE 2
D3: Name | E3: Employee number | F3: =CHOOSE(RANDBETWEEN(1,2),"Week","Month") -> Month | G3: Date | H3: Tax Code | I3: NI Number
D4: =CONCATENATE(INDEX('SYSTEM FORMULAE'!A$2:A$201,RANDBETWEEN(1,200)),INDEX('SYSTEM FORMULAE'!C$2:C$50,RANDBETWEEN(1,49))) -> Alfie Wright | E4: =IF(RAND()<0.3,RANDBETWEEN(1,99),IF(RAND()<0.35,RANDBETWEEN(100,9999),RANDBETWEEN(10000,999999))) -> 242400 | F4: =IF(F3="Month",MOD(MONTH(G4)+9,12),WEEKNUM(G4)) -> 1 | G4: =TODAY()+RANDBETWEEN(-50,50) -> 2023-04-02 | H4: =CONCATENATE(RANDBETWEEN(400,700),CHOOSE(RANDBETWEEN(1,2),"H","L")) -> 431H | I4: =CONCATENATE(CHOOSE(RANDBETWEEN(1,20),"A","B","C","E","G","H","J","K","L","M","N","O","P","R","S","T","W","X","Y","Z"),CHOOSE(RANDBETWEEN(1,20),"A","B","C","E","G","H","J","K","L","M","N","O","P","R","S","T","W","X","Y","Z")," ",RANDBETWEEN(1,9),RANDBETWEEN(1,9)," ",RANDBETWEEN(1,9),RANDBETWEEN(1,9)," ",RANDBETWEEN(1,9),RANDBETWEEN(1,9)," ",CHOOSE(RANDBETWEEN(1,4),"A","B","C","D")) -> XJ 25 98 58 A
D6: BASIC PAY | H6: DEDUCTIONS | J6: =IF(D10="","",3*ROW(G8)+3-J7-J8) -> 9
E7: Hourly wage | F7: Hours worked | G7: TOTAL | I7: TOTAL | J7: =IF(D10="",RANDBETWEEN(ROW(G8),ROW(G8)+1),RANDBETWEEN(ROW(G8),ROW(G8)+2)) -> 8
D8: Basic hours | E8: =RANDBETWEEN(6,20) -> 7 | F8: =RANDBETWEEN(10,35) -> 21 | G8: =E8*F8 -> 147 | H8: Tax | I8: =INT(0.2*G11)+0.1*RANDBETWEEN(0,9) -> 63.6 | J8: =IF(D10="",IF(J7=ROW(G8),ROW(G8)+1,ROW(G8)),IF(J7=ROW(G8),RANDBETWEEN(ROW(G8)+1,ROW(G8)+2),IF(J7=ROW(G8)+2,RANDBETWEEN(ROW(G8),ROW(G8)+1),CHOOSE(RANDBETWEEN(1,2),ROW(G8),ROW(G8)+2)))) -> 10
D9: =CHOOSE(RANDBETWEEN(1,3),"Saturday","Night shift","Time-and-a-half") -> Saturday | E9: =1.5*E8 -> 10.5 | F9: =RANDBETWEEN(1,12) -> 12 | G9: =E9*F9 -> 126 | H9: National Insurance | I9: =INT(0.09*G11)+0.1*RANDBETWEEN(0,9) -> 28.6 | J9: =RANDBETWEEN(ROW(G8),ROW(G8)+2) -> 10
D10: =IF(D9="Saturday","Sunday",IF(D9="Night shift",CHOOSE(RANDBETWEEN(1,2),"Evenings",""),"Double time")) -> Sunday | E10: =IF(D10="","",2*E8) -> 14 | F10: =IF(D10="","",RANDBETWEEN(1,12)) -> 3 | G10: =IF(D10="","",E10*F10) -> 42 | H10: Pension | I10: =INT(0.05*G11)+0.1*RANDBETWEEN(0,99) -> 17.6
F11: GROSS PAY | G11: =SUM(G8:G10) -> 315 | H11: TOTAL DEDUCTIONS | I11: =SUM(I8:I10) -> 109.8
H13: NET PAY | I13: =G11-I11 -> 205.2
D15: Name | E15: Employee number | F15: =CHOOSE(RANDBETWEEN(1,2),"Week","Month") -> Month | G15: Date | H15: Tax Code | I15: NI Number
D16: =CONCATENATE(INDEX('SYSTEM FORMULAE'!A$2:A$201,RANDBETWEEN(1,200)),INDEX('SYSTEM FORMULAE'!C$2:C$43,RANDBETWEEN(1,42))) -> Ellis Morrison | E16: =IF(RAND()<0.3,RANDBETWEEN(1,99),IF(RAND()<0.35,RANDBETWEEN(100,9999),RANDBETWEEN(10000,999999))) -> 2257 | F16: =IF(F15="Month",MOD(MONTH(G16)+9,12),WEEKNUM(G16)) -> 2 | G16: =TODAY()+RANDBETWEEN(-50,50) -> 2023-05-11 | H16: =CONCATENATE(RANDBETWEEN(400,700),CHOOSE(RANDBETWEEN(1,2),"H","L")) -> 491L | I16: =CONCATENATE(CHOOSE(RANDBETWEEN(1,20),"A","B","C","E","G","H","J","K","L","M","N","O","P","R","S","T","W","X","Y","Z"),CHOOSE(RANDBETWEEN(1,20),"A","B","C","E","G","H","J","K","L","M","N","O","P","R","S","T","W","X","Y","Z")," ",RANDBETWEEN(1,9),RANDBETWEEN(1,9)," ",RANDBETWEEN(1,9),RANDBETWEEN(1,9)," ",RANDBETWEEN(1,9),RANDBETWEEN(1,9)," ",CHOOSE(RANDBETWEEN(1,4),"A","B","C","D")) -> XR 63 73 99 B
D18: BASIC PAY | H18: DEDUCTIONS | J18: =IF(D22="","",3*ROW(G20)+3-J19-J20) -> 20
E19: Hourly wage | F19: Hours worked | G19: TOTAL | I19: TOTAL | J19: =IF(D22="",RANDBETWEEN(ROW(G20),ROW(G20)+1),RANDBETWEEN(ROW(G20),ROW(G20)+2)) -> 22
D20: Basic hours | E20: =RANDBETWEEN(6,20) -> 15 | F20: =RANDBETWEEN(10,35) -> 25 | G20: =E20*F20 -> 375 | H20: Tax | I20: =INT(0.2*G23)+0.1*RANDBETWEEN(0,9) -> 120.6 | J20: =IF(D22="",IF(J19=ROW(G20),ROW(G20)+1,ROW(G20)),IF(J19=ROW(G20),RANDBETWEEN(ROW(G20)+1,ROW(G20)+2),IF(J19=ROW(G20)+2,RANDBETWEEN(ROW(G20),ROW(G20)+1),CHOOSE(RANDBETWEEN(1,2),ROW(G20),ROW(G20)+2)))) -> 21
D21: =CHOOSE(RANDBETWEEN(1,3),"Saturday","Night shift","Time-and-a-half") -> Saturday | E21: =1.5*E20 -> 22.5 | F21: =RANDBETWEEN(1,12) -> 6 | G21: =E21*F21 -> 135 | H21: National Insurance | I21: =INT(0.09*G23)+0.1*RANDBETWEEN(0,9) -> 54.1 | J21: =RANDBETWEEN(ROW(G20),ROW(G20)+2) -> 22
D22: =IF(D21="Saturday","Sunday",IF(D21="Night shift",CHOOSE(RANDBETWEEN(1,2),"Evenings",""),"Double time")) -> Sunday | E22: =IF(D22="","",2*E20) -> 30 | F22: =IF(D22="","",RANDBETWEEN(1,12)) -> 3 | G22: =IF(D22="","",E22*F22) -> 90 | H22: Pension | I22: =INT(0.05*G23)+0.1*RANDBETWEEN(0,99) -> 36.6
F23: GROSS PAY | G23: =SUM(G20:G22) -> 600 | H23: TOTAL DEDUCTIONS | I23: =SUM(I20:I22) -> 211.3
H25: NET PAY | I25: =G23-I23 -> 388.7
D27: Name | E27: Employee number | F27: =CHOOSE(RANDBETWEEN(1,2),"Week","Month") -> Week | G27: Date | H27: Tax Code | I27: NI Number
D28: =CONCATENATE(INDEX('SYSTEM FORMULAE'!A$2:A$201,RANDBETWEEN(1,200)),INDEX('SYSTEM FORMULAE'!C$2:C$43,RANDBETWEEN(1,42))) -> Isabelle Paterson | E28: =IF(RAND()<0.3,RANDBETWEEN(1,99),IF(RAND()<0.35,RANDBETWEEN(100,9999),RANDBETWEEN(10000,999999))) -> 6781 | F28: =IF(F27="Month",MOD(MONTH(G28)+9,12),WEEKNUM(G28)) -> 12 | G28: =TODAY()+RANDBETWEEN(-50,50) -> 2023-03-20 | H28: =CONCATENATE(RANDBETWEEN(400,700),CHOOSE(RANDBETWEEN(1,2),"H","L")) -> 426H | I28: =CONCATENATE(CHOOSE(RANDBETWEEN(1,20),"A","B","C","E","G","H","J","K","L","M","N","O","P","R","S","T","W","X","Y","Z"),CHOOSE(RANDBETWEEN(1,20),"A","B","C","E","G","H","J","K","L","M","N","O","P","R","S","T","W","X","Y","Z")," ",RANDBETWEEN(1,9),RANDBETWEEN(1,9)," ",RANDBETWEEN(1,9),RANDBETWEEN(1,9)," ",RANDBETWEEN(1,9),RANDBETWEEN(1,9)," ",CHOOSE(RANDBETWEEN(1,4),"A","B","C","D")) -> AJ 74 86 66 D
D30: BASIC PAY | H30: DEDUCTIONS | J30: =IF(D34="","",3*ROW(G32)+3-J31-J32) -> 32
E31: Hourly wage | F31: Hours worked | G31: TOTAL | I31: TOTAL | J31: =IF(D34="",RANDBETWEEN(ROW(G32),ROW(G32)+1),RANDBETWEEN(ROW(G32),ROW(G32)+2)) -> 33
D32: Basic hours | E32: =RANDBETWEEN(6,20) -> 16 | F32: =RANDBETWEEN(10,35) -> 21 | G32: =E32*F32 -> 336 | H32: Tax | I32: =INT(0.2*G35)+0.1*RANDBETWEEN(0,9) -> 131.9 | J32: =IF(D34="",IF(J31=ROW(G32),ROW(G32)+1,ROW(G32)),IF(J31=ROW(G32),RANDBETWEEN(ROW(G32)+1,ROW(G32)+2),IF(J31=ROW(G32)+2,RANDBETWEEN(ROW(G32),ROW(G32)+1),CHOOSE(RANDBETWEEN(1,2),ROW(G32),ROW(G32)+2)))) -> 34
D33: =CHOOSE(RANDBETWEEN(1,3),"Saturday","Night shift","Time-and-a-half") -> Time-and-a-half | E33: =1.5*E32 -> 24 | F33: =RANDBETWEEN(1,12) -> 12 | G33: =E33*F33 -> 288 | H33: National Insurance | I33: =INT(0.09*G35)+0.1*RANDBETWEEN(0,9) -> 59.2 | J33: =RANDBETWEEN(ROW(G32),ROW(G32)+2) -> 33
D34: =IF(D33="Saturday","Sunday",IF(D33="Night shift",CHOOSE(RANDBETWEEN(1,2),"Evenings",""),"Double time")) -> Double time | E34: =IF(D34="","",2*E32) -> 32 | F34: =IF(D34="","",RANDBETWEEN(1,12)) -> 1 | G34: =IF(D34="","",E34*F34) -> 32 | H34: Pension | I34: =INT(0.05*G35)+0.1*RANDBETWEEN(0,99) -> 41.1
F35: GROSS PAY | G35: =SUM(G32:G34) -> 656 | H35: TOTAL DEDUCTIONS | I35: =SUM(I32:I34) -> 232.2
H37: NET PAY | I37: =G35-I35 -> 423.8

Sheet SYSTEM FORMULAE
A1: Names | B1: 1998 baby names - http://www.statistics.gov.uk/statbase/Product.asp?vlnk=15282
A2: Jack | C2: Smith
A3: Thomas | C3: Wilson
A4: James | C4: Jones
A5: Daniel | C5: Campbell
A6: Josh | C6: Williams
A7: Matthew | C7: Brown
A8: Samuel | C8: Taylor
A9: Callum | C9: Kelly
A10: Joseph | C10: Davies
A11: Jordan | C11: Johnston
A12: Connor | C12: Evans
A13: Ryan | C13: Robertson
A14: Luke | C14: Moore
A15: William | C15: Thomas
A16: Harry | C16: Thomson
A17: Ben | C17: Roberts
A18: George | C18: Johnson
A19: Lewis | C19: Smyth
A20: Alexander | C20: Lewis
A21: Oliver | C21: Stewart
A22: Adam | C22: Anderson
A23: Jake | C23: Hughes
A24: Michael | C24: Scott
A25: Liam | C25: Wright
A26: Nathan | C26: Docherty
A27: Kieran | C27: Murray
A28: Jacob | C28: MacDonald
A29: Cameron | C29: Reid
A30: Ben | C30: Taylor
A31: Mohammed | C31: Clark
A32: Aaron | C32: Ross
A33: Christopher | C33: Young
A34: Bradley | C34: Mitchell
A35: Jamie | C35: Watson
A36: Charlie | C36: Paterson
A37: Brandon | C37: Morrison
A38: Robert | C38: Jackson
A39: Kyle | C39: Wood
A40: David | C40: Hall
A41: Owen | C41: Green
A42: Charles | C42: White
A43: Andrew | C43: Walker
A44: Reece | C44: Carlyle
A45: Edward | C45: Forbes
A46: Dylan | C46: Glen
A47: Alex | C47: Davidson
A48: Ethan | C48: McDonald
A49: Jonathan | C49: McGrath
A50: Sam | C50: MacInnes
A51: Louis
A52: Max
A53: Dominic
A54: John
A55: Ashley
A56: Rhys
A57: Henry
A58: Conor
A59: Joe
A60: Tyler
A61: Scott
A62: Sean
A63: Nick
A64: Ross
A65: Morgan
A66: Elliot
A67: Patrick
A68: Peter
A69: Billy
A70: Mark
A71: Stephen
A72: Alfie
A73: Harrison
A74: Lee
A75: Anthony
A76: Mitchell
A77: Joel
A78: Toby
A79: Paul
A80: Jay
A81: Jason
A82: Aidan
A83: Richard
A84: Mohammad
A85: Isaac
A86: Declan
A87: Josh
A88: Steven
A89: Marcus
A90: Muhammad
A91: Elliott
A92: Harvey
A93: Tom
A94: Christian
A95: Kane
A96: Shane
A97: Leon
A98: Shaun
A99: Corey
A100: Ellis
A101: Kai
A102: Natalie
A103: Abbie
A104: Francesca
A105: Melissa
A106: Katherine
A107: Harriet
A108: Imogen
A109: Jodie
A110: Gemma
A111: Kayleigh
A112: Lily
A113: Jennifer
A114: Kate
A115: Stephanie
A116: Daisy
A117: Niamh
A118: Millie
A119: Aimee
A120: Kirsty
A121: Hollie
A122: Rosie
A123: Jordan
A124: Mollie
A125: Alisha
A126: Mia
A127: Isobel
A128: Tia
A129: Ellen
A130: Erin
A131: Bethan
A132: Sian
A133: Alicia
A134: Rhiannon
A135: Ashleigh
A136: Catherine
A137: Madeleine
A138: Isabelle
A139: Kelsey
A140: Sophia
A141: Isabella
A142: Naomi
A143: Yasmin
A144: Freya
A145: Morgan
A146: Robyn
A147: Isabel
A148: Maisie
A149: Poppy
A150: Rachael
A151: Chantelle
A152: Chloe
A153: Emily
A154: Megan
A155: Jessica
A156: Sophie
A157: Charlotte
A158: Hannah
A159: Lauren
A160: Rebecca
A161: Lucy
A162: Amy
A163: Georgia
A164: Katie
A165: Bethany
A166: Emma
A167: Olivia
A168: Courtney
A169: Shannon
A170: Eleanor
A171: Jade
A172: Ellie
A173: Abigail
A174: Holly
A175: Molly
A176: Laura
A177: Alice
A178: Sarah
A179: Caitlin
A180: Rachel
A181: Elizabeth
A182: Amber
A183: Paige
A184: Georgina
A185: Danielle
A186: Grace
A187: Nicole
A188: Natasha
A189: Ella
A190: Chelsea
A191: Leah
A192: Victoria
A193: Anna
A194: Phoebe
A195: Samantha
A196: Zoe
A197: Alexandra
A198: Jasmine
A199: Amelia
A200: Louise
... 1 more rows
